Cogmind - Beta 16.1 @@@ ROGUE MODE // 2026.04.06 @ 13:13:05 Player: Elxavo Result: Destroyed by L-31 Rogue with Katana Performance ------------- Evolutions (1) 500 Regions Visited (3) 600 Robots Destroyed (26) 130 Value Destroyed (758) 758 Prototype IDs (0) 0 Alien Tech Used (0) 0 Bonus (0) 0 TOTAL SCORE: 1988 Bonus ------- None Cogmind --------- Core Integrity 0/400 Matter 215/300 Energy 248/250 System Corruption 2% Temperature Cool (26) Movement Hovering (360) Ox5 Location -9/Mines Parts ------- > --- POWER (1) -------- Ion Engine > --- PROPULSION (2) --- Hover Unit > --- UTILITY (4) ------ Large Storage Unit Targeting Computer Melee Analysis Suite Hardened Light Armor Plating > --- WEAPON (2) ------- Autogun Autogun > --- INVENTORY (15) --- Ion Engine Improved Ion Engine Hover Unit Seismic Detector Hardened Light Armor Plating Beam Rifle Faulty Improved Medium Laser Autogun Mining Laser Mining Laser Welding Torch Peak State ------------ > --- POWER ------------ Ion Engine > --- PROPULSION ------- Aluminum Leg Aluminum Leg > --- UTILITY ---------- Large Storage Unit Melee Analysis Suite Core Shielding Hardened Light Armor Plating > --- WEAPON ----------- Beam Rifle Katana > --- INVENTORY -------- Ion Engine Aluminum Leg Hover Unit Hover Unit Seismic Detector Targeting Computer Hardened Light Armor Plating Improved Medium Laser Heavy Assault Rifle Autogun Autogun Autogun Autogun Mining Laser Welding Torch [Rating: 17] Favorites ----------- Power Light Ion Engine Engine Light Ion Engine Propulsion Light Treads Treads Light Treads Leg Aluminum Leg Hover Unit Hover Unit Utility Large Storage Unit Device Seismic Detector Storage Large Storage Unit Processor Melee Analysis Suite Protection Hardened Light Armor Plating Weapon Light Assault Rifle Energy Gun Beam Rifle Ballistic Gun Light Assault Rifle Slashing Weapon Katana Build | -11 -10 -9 -9 ------- Run | Yrd Mat Mat Min Slots Evolved 2 | . . 2 . Power . | . . . . Propulsion . | . . . . Utility 2 | . . 2 . Weapon . | . . . . Parts Attached 30 | 7 2 20 1 Power 4 | 1 . 3 . Engine 4 | 1 . 3 . Core . | . . . . Reactor . | . . . . Propulsion 7 | 2 . 5 . Treads 2 | 2 . . . Leg 3 | . . 3 . Wheel . | . . . . Hover 2 | . . 2 . Flight . | . . . . Utility 11 | 2 2 7 . Device 1 | 1 . . . Storage 4 | 1 2 1 . Processor 2 | . . 2 . Hackware . | . . . . Protection 4 | . . 4 . Artifact . | . . . . Weapon 8 | 2 . 5 1 Energy Gun 1 | . . 1 . Energy Cannon . | . . . . Ballistic Gun 6 | 2 . 3 1 Ballistic Cannon . | . . . . Launcher . | . . . . Special Weapon . | . . . . Impact Weapon . | . . . . Slashing Weapon 1 | . . 1 . Piercing Weapon . | . . . . Special Melee Weapon . | . . . . Unidentified Prototypes . | . . . . Parts Lost 17 | . . 15 2 Power 3 | . . 3 . Propulsion 4 | . . 3 1 Utility 5 | . . 5 . Weapon 5 | . . 4 1 Highest Loss Streak 5 | . . 5 2 To Critical Strikes 1 | . . 1 . Average Backups 10 | 5 9 12 12 Power 1 | 1 1 1 2 Propulsion 3 | 2 3 2 1 Utility 2 | . 2 2 2 Weapon 3 | 1 2 4 6 Tool/Special . | . . . . Unused Backups 14 | . 4 1 9 Power 3 | . 1 . 2 Propulsion 3 | . 2 . 1 Utility 3 | . 1 . 2 Weapon 4 | . . 1 3 Tool/Special 1 | . . . 1 Average Slot Usage (%) 96 | . 100 94 94 Engine 12 | . 14 11 11 Treads 12 | . 28 3 . Leg 8 | . . 13 . Hover 1 | . . 2 22 Device 6 | . 14 1 . Storage 14 | . 14 14 11 Processor 5 | . . 8 22 Protection 10 | . . 17 11 Energy Gun 2 | . . 4 . Ballistic Gun 17 | . 28 11 16 Slashing Weapon 3 | . . 5 . Peak Build Rating 17 | 7 8 17 15 Average Rating 10 | 5 7 13 14 On Entrance 7 | . 7 8 15 Avg Prop Armor Cover (%) . | . . . . Naked Turns . | . . . . Heaviest Build 37 | 12 27 37 . Greatest Support 40 | 40 40 40 . Greatest Overweight (x) 3 | . . 3 . Average Overweight (x) . | . . 1 . Largest Inventory Capacity 15 | 8 15 15 15 Average Capacity 12 | 7 10 15 15 Most Carried 15 | 8 13 15 12 Average Carried 10 | 6 9 12 11 Final Capacity 15 | 8 15 15 15 Final Carried 13 | 8 13 12 11 Class Distribution -------------------- 82% | Mutant 17% | Scavenger-Mutant Dominant Class ---------------- Mutant | -10/Materials Mutant | -9/Materials Mutant | -9/Mines Resources | -11 -10 -9 -9 ----------- Run | Yrd Mat Mat Min Matter Collected 733 | 298 114 321 . Remotely . | . . . . Salvage Created 966 | 125 83 716 42 Parts 68 | 11 10 45 2 Haulers Intercepted . | . . . . Recyclers Shooed . | . . . . Parts Field Recycled . | . . . . Retrieved Matter . | . . . . Parts Self-Destructed . | . . . . Prevented . | . . . . Parts Restored . | . . . . Kills | -11 -10 -9 -9 ------- Run | Yrd Mat Mat Min Combat Hostiles Destroyed 21 | . 5 15 1 Guns 19 | . 5 13 1 Classes Destroyed 9 | 2 2 5 . Worker 1 | . . 1 . Builder 1 | . . 1 . Tunneler 2 | 2 . . . Recycler 1 | 1 . . . Swarmer 4 | . 4 . . Grunt 9 | . 1 7 1 Brawler 1 | . . 1 . Duelist 1 | . . 1 . Sentry 6 | . . 6 . Best Kill Streak 5 | 1 3 5 1 Combat Bots Only 5 | . 3 5 1 Max Kills in Single Turn 2 | 1 1 2 1 Gunslinging . | . . . . Exploded . | . . . . Melee . | . . . . Uniques/NPCs Destroyed . | . . . . Combat | -11 -10 -9 -9 -------- Run | Yrd Mat Mat Min Hostile Shots Fired 198 | . 39 141 18 Missed 51 | . 10 38 3 Hits 147 | . 29 103 15 Melee 15 | . . 7 8 Projectile 132 | . 29 96 7 AOE 1 | . 1 . . Critical Strikes 9 | . 3 5 1 Damage Taken 2391 | . 399 1660 332 Core 532 | . 129 321 82 Absorbed by Shields . | . . . . Redirected to Shielding 61 | . . 61 . Core Remaining (%) 74 | 100 48 . . Volleys Fired 105 | 7 14 75 9 Largest 2 | 2 2 2 2 Hottest 56 | 40 40 56 46 Shots Fired 147 | 14 28 90 15 Gun 147 | 14 28 90 15 Cannon . | . . . . Launcher . | . . . . Special . | . . . . Kinetic 109 | 14 28 52 15 Thermal 38 | . . 38 . Explosive . | . . . . Electromagnetic . | . . . . Robot Hit Streak 14 | 5 12 14 13 Robot Miss Streak 2 | 2 1 2 1 Penetration Max . | . . . . Secondary Targets 3 | . 2 . 1 Max Gunslinging Chain 1 | . 1 . 1 Shots Hit Robots 115 | 9 20 73 13 Core Hits 46 | 4 9 30 3 Critical Kills . | . . . . Critical Parts Destroyed . | . . . . Critical Strikes 5 | . . 5 . Burn 5 | . . 5 . Melee Attacks . | . . . . Impact . | . . . . Slashing . | . . . . Piercing . | . . . . Sneak Attacks . | . . . . Combat Hostiles . | . . . . Follow-up Attacks . | . . . . Damage Inflicted 1626 | 85 221 1128 192 Guns 1447 | 85 221 949 192 Cannons . | . . . . Explosions 177 | . . 177 . Melee . | . . . . Ramming 2 | . . 2 . Kinetic 973 | 85 221 475 192 Thermal 474 | . . 474 . Explosive 177 | . . 177 . Electromagnetic . | . . . . Impact . | . . . . Slashing . | . . . . Piercing . | . . . . Highest Corruption 2 | . . 2 2 Average Corruption 2 | . . 2 2 Corruption Purged . | . . . . Corruption Blocked . | . . . . Effects 9 | . . 9 . Message Errors 1 | . . 1 . Matter Fused 2 | . . 2 . Energy Discharges 2 | . . 2 . Data Loss (minor) 3 | . . 3 . Data Loss (major) 1 | . . 1 . Overload Shots . | . . . . Overflow Damage 17 | . . 17 . Projectiles . | . . . . Explosions 17 | . . 17 . Melee . | . . . . Knockbacks . | . . . . Impact . | . . . . Kinetic . | . . . . Secondary . | . . . . Self-Inflicted Damage 161 | . . 161 . Shots 2 | . . 2 . Rammed . | . . . . Targets Rammed 1 | . . 1 . Kicked 1 | . . 1 . Crushed . | . . . . Highest Temperature 294 | . 25 294 26 Average Temperature 96 | . 9 112 12 Received Heat Transfer 699 | . 69 588 42 Effects 3 | . . 3 . Interference 3 | . . 3 . Siege Activations . | . . . . Martial Activations . | . . . . Shielding Activations . | . . . . Robots Disrupted . | . . . . Combat Hostiles . | . . . . Robots Corrupted . | . . . . Combat Hostiles . | . . . . Parts Fried . | . . . . Impact Corruptions . | . . . . Robots Melted 2 | . . 2 . Combat Hostiles 2 | . . 2 . Parts Melted 2 | . . 2 . Heat Transferred 1591 | . . 1591 . Parts Sabotaged . | . . . . Parts Stolen . | . . . . Parts Stripped . | . . . . Power Chain Reactions . | . . . . Alert | -11 -10 -9 -9 ------- Run | Yrd Mat Mat Min Maximum Alert Level . | . . . . Low Security (%) 100 | 100 100 100 100 Level 1 . | . . . . Level 2 . | . . . . Level 3 . | . . . . Level 4 . | . . . . Level 5 . | . . . . High Security . | . . . . Max Security . | . . . . Peak Influence 172 | 5 70 172 68 Initial 48 | . . 3 48 Average 32 | . 14 50 59 Influence Increases 708 | 15 140 533 20 Destroy 0b10 Robot/C 420 | . 100 300 20 Destroy 0b10 Robot/NC 25 | 15 . 10 . Destroy Leader 100 | . 10 90 . Successful Hack 28 | . . 28 . Disable Machine 30 | . . 30 . Destroy Structure 30 | . . 30 . Lose Combat Pursuer 75 | . 30 45 . Influence Decreases 670 | 15 132 415 108 Entered New Map 83 | . . 5 78 Time Decay 437 | 15 132 280 10 Lost Part 150 | . . 130 20 Squads Dispatched . | . . . . Investigation . | . . . . Extermination . | . . . . Reinforcement . | . . . . Assault . | . . . . Garrison . | . . . . Intercept . | . . . . Searches Triggered . | . . . . Construction Impeded . | . . . . Haulers Reinforced . | . . . . Active Scanning Responses . | . . . . Cargo Convoy Interrupts . | . . . . Stealth | -11 -10 -9 -9 --------- Run | Yrd Mat Mat Min Distress Signals 2 | . . 2 . Communications Jammed . | . . . . Distress Signals . | . . . . Times Spotted 37 | . 14 21 2 Peak Tracking Total 7 | . 3 7 2 Tactical Retreats 4 | . 1 3 . Traps | -11 -10 -9 -9 ------- Run | Yrd Mat Mat Min Traps Triggered 1 | . 1 . . Indirectly . | . . . . Trap Hack Attempts . | . . . . Triggered . | . . . . Disarmed . | . . . . Reprogrammed . | . . . . Reused . | . . . . Traps Extracted . | . . . . Installed . | . . . . Triggered . | . . . . Machines | -11 -10 -9 -9 ---------- Run | Yrd Mat Mat Min Machines Disabled 2 | . . 2 . Max in Single Turn 2 | . . 2 . Machines Repaired . | . . . . Machines Dismantled . | . . . . Machines Sabotaged . | . . . . Overloaded Fab Kills . | . . . . Hacking | -11 -10 -9 -9 --------- Run | Yrd Mat Mat Min Machines Accessed 4 | . 2 2 . Terminals 3 | . 2 1 . Fabricators . | . . . . Repair Stations . | . . . . Recycling Units 1 | . . 1 . Scanalyzers . | . . . . Garrison Access . | . . . . Total Hacks 8 | . 3 5 . Successful 4 | . . 4 . Failed 4 | . 3 1 . Catastrophic 1 | . 1 . . Database Lockouts . | . . . . Manual 1 | . 1 . . Terminals 6 | . 3 3 . Fabricators . | . . . . Repair Stations . | . . . . Recycling Units 2 | . . 2 . Scanalyzers . | . . . . Garrison Access . | . . . . Terminal Hacks 2 | . . 2 . Terminal Index 1 | . . 1 . Zone Layout 1 | . . 1 . Fabricator Hacks . | . . . . Repair Station Hacks . | . . . . Recycling Unit Hacks 2 | . . 2 . Report Inventory 1 | . . 1 . Retrieve Components 1 | . . 1 . Scanalyzer . | . . . . Garrison Access Hacks . | . . . . Unauthorized Hacks . | . . . . Terminals . | . . . . Fabricators . | . . . . Repair Stations . | . . . . Recycling Units . | . . . . Scanalyzers . | . . . . Garrison Access . | . . . . Data Cores Recovered . | . . . . Used . | . . . . Hacking Detections 3 | . 2 1 . Full Trace Events . | . . . . Feedback Events . | . . . . Feedback Blocked . | . . . . Robot Schematics Acquired . | . . . . Robots Built . | . . . . Authchips . | . . . . Time . | . . . . Total Robot Build Rating . | . . . . Part Schematics Acquired . | . . . . Parts Built . | . . . . Authchips . | . . . . Time . | . . . . Total Part Build Rating . | . . . . Part Studies Acquired . | . . . . Parts Repaired . | . . . . Time . | . . . . Parts Recycled . | . . . . Recycled Matter . | . . . . Retrieved Matter . | . . . . Retrieved Components 10 | . . 10 . Parts Scanalyzed . | . . . . Part Schematics Acquired . | . . . . Parts Damaged . | . . . . Bothacking | -11 -10 -9 -9 ------------ Run | Yrd Mat Mat Min Used RIF Installer . | . . . . Robots Hacked . | . . . . Non-combat . | . . . . Combat . | . . . . Robot Hacks Applied . | . . . . Relay Couplers Released . | . . . . Fabnet Peak Effective % . | . . . . Robots Rewired . | . . . . Allies Hacked . | . . . . Hacks Repelled . | . . . . Allies | -11 -10 -9 -9 -------- Run | Yrd Mat Mat Min Total Allies . | . . . . Largest Group . | . . . . Highest-Rated Group . | . . . . Highest-Rated Ally . | . . . . Total Orders . | . . . . Ally Attacks . | . . . . Total Damage . | . . . . Kills . | . . . . Allies Corrupted . | . . . . Allies Melted . | . . . . Intel | -11 -10 -9 -9 ------- Run | Yrd Mat Mat Min Active Infowar (turns) 838 | 96 573 169 . Seismic 838 | 96 573 169 . Robot Analysis Total . | . . . . Derelict Logs Recovered . | . . . . Drone Launches . | . . . . Drone Recoveries . | . . . . Exploration | -11 -10 -9 -9 ------------- Run | Yrd Mat Mat Min Turns Passed 1878 | 268 573 1017 20 Spaces Moved 742 | 148 247 347 . Core 6 | 6 . . . Treads 466 | 142 247 77 . Legs 214 | . . 214 . Wheels . | . . . . Hover 56 | . . 56 . Flight . | . . . . Fastest Speed 50 | 50 160 160 . Average Speed 177 | 155 160 198 . Slowest Speed 330 | 160 160 330 . Overloaded Moves . | . . . . Propulsion Burnouts . | . . . . Robots Hopped . | . . . . Potential Cave-ins . | . . . . Cave-ins Triggered . | . . . . Exploration Rate (%) 17 | 7 35 24 5 Regions Visited 3 Branch Regions 1 Pre-discovered Areas . | . . . . Known Exits Taken . | . . . . Unknown Exits Taken 3 | 1 1 1 . Scrap Searched . | . . . . Spaces Dug . | . . . . Terrain Destroyed 30 | . . 30 . Melee . | . . . . Projectile . | . . . . AOE 30 | . . 30 . Terrain Rammed . | . . . . Walls Destroyed . | . . . . Machines Disabled . | . . . . Actions | -11 -10 -9 -9 --------- Run | Yrd Mat Mat Min Total 1171 | 170 403 588 10 Wait 251 | . 126 125 . Move 739 | 147 246 346 . Hop . | . . . . Pick Up 36 | 9 9 18 . Fast Attach 7 | 6 . 1 . Attach 19 | 1 . 17 1 Detach . | . . . . Swap 4 | . 2 2 . Drop 9 | . 6 3 . Fire 105 | 7 14 75 9 Melee . | . . . . Ram . | . . . . Kick 1 | . . 1 . Crush . | . . . . Escape Stasis . | . . . . Rewire . | . . . . Trap . | . . . . Miscellaneous . | . . . . Route ------- -11/Scrapyard -10/Materials (discovered 2 exits: *Mat / [*Min]) -9/Materials -9/Mines History --------- Turn | Location | Event 2 | -11/Scrapyard | Met Revision 17 4 | -11/Scrapyard | Discovered new exit (range 16) 269 | -11/Scrapyard | Entered Materials 316 | -10/Materials | Build established: Mutant 354 | -10/Materials | Discovered new exit (range 6) 579 | -10/Materials | Discovered new exit (range 6) 842 | -10/Materials | Core integrity fell below 50% 842 | -10/Materials | Entered another Materials area 842 | -9/Materials | Evolved 2 slots: Utility x2 1054 | -9/Materials | Lost 5 parts (2p1n1u1w) 1164 | -9/Materials | Lost 3 parts (2u1w) 1574 | -9/Materials | Lost 5 parts (1p2n1u1w) 1583 | -9/Materials | Core integrity fell below 50% 1584 | -9/Materials | Build established: Scavenger-Mutant 1615 | -9/Materials | Core integrity fell below 20% 1809 | -9/Materials | Discovered new exit (range 15) 1859 | -9/Materials | Entered Mines 1879 | -9/Mines | Destroyed by L-31 Rogue with Katana Last Messages --------------- 01809_ EXIT=FOUND 01817_ System corrupted: Substantial component data lost. 01824_ T-07 Excavator is excavating. 01833_ Connecting with Terminal... >>Index(Terminals) Found 11 terminals. Downloaded coordinate data. >>Layout(Zone) Retrieving Zone 5R layout... Downloaded map data. 01835_ System corrupted: Component data lost. 01837_ T-07 Excavator is excavating. 01842_ U-05 Engineer lays Concrete. 01854_ Acquired Mining Laser. LOCATION=UNKNOWN GOAL=ESCAPE 01859_ G-34 Mercenary destroyed. 01859_ Switching to secondary target: G-34 Mercenary. 01864_ Hvy. Assault Rifle destroyed. 01877_ Hover Unit destroyed. Map ----- +----------------------------------------------------+ | ?????????????????????????????????? | | ?????????????????????????????????? | | ?????????????????????????????????? | | ?????????????????????????????????? | | ?????????????????????????????????? | | ?????????????????????????????????? | | ?????????????????????????????????? | | ?????????????????????????????????? | | ?????????????????????????????????? | | ?????????????????????????????????? | | ?????????????????????????????????? | | ?????????????????????????????????? | | ???????????????????????????##????? | | ??????????????????????????? ????? | | ??????????????????????????# ????? | | ????????????????????????## ????? | | ???????????????????????? #????? | | ???????????????????????? ##???? | | ???????????????????????? ##??? | | ????????????????????????# #??? | | ????????????????????????# #??? | | ???????????????????????## #??? | | ??????????????????????## #???? | | ??????????????????????# #???? | | ??????????????????????# #???? | | ???????????????????????# @ #??? | | ???????????????????????#gl%= #??? | | ??????????????????????# #??? | | ????????????????????? ##??? | | ????????????????????#### ##???? | | ???????????????????????######????? | | ?????????????????????????????????? | | | | | | | | | | | | | | | | | | | | | | | | | | | | | | | | | | | | | +----------------------------------------------------+ Best States ------------- Heat Dissipation 28 Energy Generation 10 Energy Capacity 250 Matter Stores 400 Matter Capacity 400 Sight Range 16 Terrain Scan Density 10 Armor Coverage 150 Core Shielding 20 Utility Shielding 33 Evasion (%) 40 Targeting Accuracy 5 Melee Accuracy 5 Recoil Reduction 2 Item Schematics ----------------- None Robot Schematics ------------------ None Fabricated ------------ Nothing Repaired ---------- Nothing Studied --------- None Alien Tech Used ----------------- None Achievements -------------- None Challenges ------------ None Game ------ Seed BladeRefineryJammer Manual? 0 Play Time 00:23:06 Cumulative 62.4 hours Start 2026.04.06 @ 12:50:06 End 2026.04.06 @ 13:13:05 Sessions 1 Manual Loads 0 Difficulty Rogue Special Mode None Game No. 79 Rogue 79 Adventurer 0 Explorer 0 Win Type - Total 0 Types 0/0/0/0/0/0/0/0/0/0 Lore% 30 Gallery% 23 Achievement% 17 Wizard Run 0 Options --------- Layout 0 ASCII 0 Keyboard 0 Movement Mouse Keybinds 0 Fullscreen 1 Font 18/SmallcapsGlow Map View 76x50 Zoom Use 0% Tactical HUD 1 Map Filters NONE Filters LOW_CONTRAST(13,24,33) Steam 1 RUN: e5980648-d2ca-423c-87cd-07ca519a1bc6